Workbook

Sheet Summary
A3: Point of Access Capacity Factor | E3: Point of Access Irriadiation Capacity Factor | F3: Electricity Production Capacity Factor | G3: Performance Ratio
B4: EU Data | E4: ='EU Summary'!E18 -> 0.2289954338 | F4: ='EU Summary'!D18 -> 0.1712328767 | G4: =F4/E4 -> 0.7477567298
B5: PVWatts | E5: ='pvwatts_monthly (2)'!D33 -> 0.224872347 | F5: ='pvwatts_monthly (2)'!B33 -> 0.1669405506 | G5: =F5/E5 -> 0.7423791891
B6: PVSYST | E6: ='PV Syst'!E21 -> 0.2327968037 | F6: ='PV Syst'!H21 -> 0.1894002385 | G6: 0.8135860782
B7: Helioscope | E7: =Helioscope!M8 -> 0.2091666667 | F7: =Helioscope!O21 -> 0.1636670645 | G7: 0.7824720214
A9: Percent Difference (High/Low) | E9: =E6/E7-1 -> 0.1129727665 | F9: =F6/F7-1 -> 0.157228787 | G9: =G6-G5 -> 0.07120688913
A12: Importance of PR
B13: Capcity Factor from Collector | G13: 0.23
B14: PR Low | G14: =G5 -> 0.7423791891
B15: Final Capacity Factor | G15: =G13*G14 -> 0.1707472135
B17: PR High | G17: =G6 -> 0.8135860782
B18: Final Capacity Factor | G18: =G13*G17 -> 0.187124798
B20: Percent Difference in Capacity Factor | G20: =G18/G15-1 -> 0.0959171407
B22: DSCR Effect | G22: =1/(1-G20) -> 1.106093307

Sheet EU Summary
A1: Summary of Annual
C3: Month | D3: Em: Average monthly electricity production from the given system [kWh]. | E3: Hm: Average monthly sum of global irradiation per square meter received by the modules of the given system [kWh/m²]. | F3: SDm: Standard deviation of the monthly electricity production due to year-to-year variation [kWh].
C4: January | D4: 114 | E4: 150 | F4: 5.8 | H4: Em: Average monthly electricity production from the given system [kWh].
C5: February | D5: 122 | E5: 161 | F5: 10.8 | H5: Hm: Average monthly sum of global irradiation per square meter received by the modules of the given system [kWh/m²].
C6: March | D6: 145 | E6: 192 | F6: 7.35 | H6: SDm: Standard deviation of the monthly electricity production due to year-to-year variation [kWh].
C7: April | D7: 142 | E7: 192 | F7: 10.1
C8: May | D8: 137 | E8: 186 | F8: 8.19
C9: June | D9: 117 | E9: 158 | F9: 4.84
C10: July | D10: 127 | E10: 172 | F10: 5.91
C11: August | D11: 128 | E11: 173 | F11: 7.98
C12: September | D12: 115 | E12: 156 | F12: 13.6
C13: October | D13: 124 | E13: 165 | F13: 9.01
C14: November | D14: 114 | E14: 150 | F14: 7.6
C15: December | D15: 115 | E15: 151 | F15: 9.2
D16: =SUM(D4:D15) -> 1500 | E16: =SUM(E4:E15) -> 2006
C18: Cap Fac | D18: =D16/8760 -> 0.1712328767 | E18: =E16/8760 -> 0.2289954338
C20: Performance Ratio | E20: =D18/E18 -> 0.7477567298
A23: Monthly energy output from tracking PV system:
G24: January | H24: February | I24: March | J24: April | K24: May | L24: June | M24: July | N24: August | O24: September | P24: October | Q24: November | R24: December | S24: Total
C25: Vertical Axis
C26: Month Em Hm SDm
C27: Em: kWh | G27: 154 | H27: 164 | I27: 193 | J27: 191 | K27: 190 | L27: 154 | M27: 168 | N27: 168 | O27: 150 | P27: 158 | Q27: 151 | R27: 153 | S27: =SUM(G27:R27) -> 1994 | T27: =S27/8760 -> 0.2276255708
C28: Hm: kWh/m2 | G28: 202 | H28: 215 | I28: 254 | J28: 253 | K28: 254 | L28: 205 | M28: 224 | N28: 225 | O28: 200 | P28: 210 | Q28: 198 | R28: 201 | S28: =SUM(G28:R28) -> 2641 | T28: =S28/8760 -> 0.3014840183
G29: 9.97 | H29: 18.1 | I29: 8.77 | J29: 10.9 | K29: 17 | L29: 11.6 | M29: 11.2 | N29: 9.48 | O29: 20.4 | P29: 10.5 | Q29: 13.2 | R29: 14.7
C31: Inclined Axis
C32: Em Hm SDm
C33: Em: kWh | G33: 152 | H33: 166 | I33: 200 | J33: 199 | K33: 195 | L33: 154 | M33: 170 | N33: 174 | O33: 156 | P33: 161 | Q33: 148 | R33: 148 | S33: =SUM(G33:R33) -> 2023 | T33: =S33/8760 -> 0.2309360731
C34: Hm: kWh/m2 | G34: 198 | H34: 217 | I34: 264 | J34: 265 | K34: 260 | L34: 205 | M34: 227 | N34: 233 | O34: 209 | P34: 214 | Q34: 194 | R34: 193 | S34: =SUM(G34:R34) -> 2679 | T34: =S34/8760 -> 0.3058219178
G35: 9.54 | H35: 18 | I35: 9.04 | J35: 11.5 | K35: 17.5 | L35: 11.6 | M35: 11.3 | N35: 9.98 | O35: 21.3 | P35: 10.7 | Q35: 12.8 | R35: 13.9
C36: Two Axis
C37: Em Hm SDm
C38: Em: kWh | G38: 160 | H38: 169 | I38: 201 | J38: 201 | K38: 203 | L38: 164 | M38: 179 | N38: 178 | O38: 156 | P38: 163 | Q38: 154 | R38: 158 | S38: =SUM(G38:R38) -> 2086 | T38: =S38/8760 -> 0.2381278539
C39: Hm: kWh/m2 | G39: 209 | H39: 222 | I39: 265 | J39: 268 | K39: 272 | L39: 219 | M39: 240 | N39: 239 | O39: 210 | P39: 216 | Q39: 203 | R39: 207 | S39: =SUM(G39:R39) -> 2770 | T39: =S39/8760 -> 0.3162100457 | U39: =T38/T39 -> 0.7530685921
G40: 10.5 | H40: 18.9 | I40: 9.09 | J40: 11.6 | K40: 18.4 | L40: 12.6 | M40: 12 | N40: 10.1 | O40: 21.3 | P40: 11 | Q40: 13.6 | R40: 15.5

Sheet pvwatts_monthly (2)
A1: PVWatts: Monthly PV Performance Data
A2: Requested Location: | B2: cancun
A3: Location: | B3: LA BAJADA, CUBA
A4: Lat (deg N): | B4: 21.92
A5: Long (deg W): | B5: 84.47
A6: Elev (m): | B6: 4
A7: DC System Size (kW): | B7: 1
A8: Module Type: | B8: Standard
A9: Array Type: | B9: Fixed (open rack)
A10: Array Tilt (deg): | B10: 21.2
A11: Array Azimuth (deg): | B11: 180
A12: System Losses: | B12: 14
A13: Invert Efficiency: | B13: 96
A14: DC to AC Size Ratio: | B14: 1.1
A15: Average Cost of Electricity Purchased from Utility ($/kWh): | B15: No utility data available
A16: Capacity Factor (%) | B16: 16.7
A18: Month | B18: AC System Output(kWh) | C18: Solar Radiation (kWh/m^2/day) | D18: Plane of Array Irradiance (W/m^2) | E18: DC array Output (kWh) | F18: Value ($)
A19: 1 | B19: 117.0385513 | C19: 5.0106411 | D19: 155.3298798 | E19: 122.2026291 | F19: 0
A20: 2 | B20: 113.7652817 | C20: 5.40561914 | D20: 151.3573303 | E20: 118.7914276 | F20: 0
A21: 3 | B21: 138.4089661 | C21: 5.87938404 | D21: 182.26091 | E21: 144.4210205 | F21: 0
A22: 4 | B22: 133.9987335 | C22: 5.98289204 | D22: 179.4867554 | E22: 139.9087677 | F22: 0
A23: 5 | B23: 130.4309235 | C23: 5.65659761 | D23: 175.3545227 | E23: 136.2299805 | F23: 0
A24: 6 | B24: 120.42836 | C24: 5.45098114 | D24: 163.5294342 | E24: 125.8750839 | F24: 0
A25: 7 | B25: 128.3500061 | C25: 5.73872805 | D25: 177.9005737 | E25: 134.1347199 | F25: 0
A26: 8 | B26: 126.4603577 | C26: 5.61758709 | D26: 174.1452026 | E26: 132.1312408 | F26: 0
A27: 9 | B27: 121.498642 | C27: 5.52737236 | D27: 165.821167 | E27: 126.9767761 | F27: 0
A28: 10 | B28: 117.060112 | C28: 5.13068914 | D28: 159.0513611 | E28: 122.2832107 | F28: 0
A29: 11 | B29: 112.3840332 | C29: 4.99546671 | D29: 149.8639984 | E29: 117.2896347 | F29: 0
A30: 12 | B30: 102.5752564 | C30: 4.38002014 | D30: 135.7806244 | E30: 107.1977387 | F30: 0
A31: Total | B31: 1462.399223 | C31: 64.77597856 | D31: 1969.88176 | E31: 1527.44223 | F31: 0
A33: Cap Factor | B33: =B31/8760 -> 0.1669405506 | D33: =D31/8760 -> 0.224872347
A35: Performance Ratio | B35: =B33/D33 -> 0.7423791891

Sheet Global IR
A2: Month | B2: January | C2: February | D2: March | E2: April | F2: May | G2: June | H2: July | I2: August | J2: September | K2: October | L2: November | M2: December | N2: Total | O2: Capactiy Factor
A3: 2005 | B3: 177 | C3: 164 | D3: 200 | E3: 186 | F3: 179 | G3: 153 | H3: 177 | I3: 170 | J3: 157 | K3: 153 | L3: 153 | M3: 161 | N3: =SUM(B3:M3) -> 2030 | O3: =N3/8760 -> 0.2317351598
A4: 2006 | B4: 160 | C4: 160 | D4: 194 | E4: 202 | F4: 173 | G4: 160 | H4: 171 | I4: 162 | J4: 169 | K4: 161 | L4: 137 | M4: 128 | N4: =SUM(B4:M4) -> 1977 | O4: =N4/8760 -> 0.2256849315
A5: 2007 | B5: 154 | C5: 148 | D5: 178 | E5: 190 | F5: 188 | G5: 160 | H5: 181 | I5: 163 | J5: 167 | K5: 163 | L5: 153 | M5: 152 | N5: 1997 | O5: 0.2279680365
A6: 2008 | B6: 148 | C6: 161 | D6: 188 | E6: 199 | F6: 191 | G6: 150 | H6: 176 | I6: 191 | J6: 152 | K6: 151 | L6: 159 | M6: 149 | N6: 2015 | O6: 0.2300228311
A7: 2009 | B7: 158 | C7: 177 | D7: 189 | E7: 203 | F7: 199 | G7: 169 | H7: 185 | I7: 173 | J7: 162 | K7: 170 | L7: 146 | M7: 147 | N7: 2078 | O7: 0.2372146119
A8: 2010 | B8: 135 | C8: 130 | D8: 198 | E8: 163 | F8: 190 | G8: 166 | H8: 165 | I8: 179 | J8: 171 | K8: 182 | L8: 158 | M8: 155 | N8: 1992 | O8: 0.2273972603
A9: 2011 | B9: 151 | C9: 155 | D9: 201 | E9: 203 | F9: 209 | G9: 148 | H9: 172 | I9: 166 | J9: 168 | K9: 143 | L9: 157 | M9: 162 | N9: 2035 | O9: 0.2323059361
A10: 2012 | B10: 147 | C10: 157 | D10: 190 | E10: 181 | F10: 168 | G10: 158 | H10: 174 | I10: 188 | J10: 108 | K10: 171 | L10: 148 | M10: 164 | N10: 1954 | O10: 0.2230593607
A11: 2013 | B11: 144 | C11: 161 | D11: 176 | E11: 190 | F11: 194 | G11: 157 | H11: 167 | I11: 165 | J11: 145 | K11: 161 | L11: 138 | M11: 143 | N11: 1941 | O11: 0.2215753425
A12: 2014 | B12: 139 | C12: 177 | D12: 209 | E12: 206 | F12: 180 | G12: 172 | H12: 173 | I12: 181 | J12: 153 | K12: 163 | L12: 156 | M12: 159 | N12: 2068 | O12: 0.2360730594
A13: 2015 | B13: 152 | C13: 163 | D13: 189 | E13: 191 | F13: 202 | G13: 159 | H13: 183 | I13: 176 | J13: 161 | K13: 159 | L13: 144 | M13: 141 | N13: 2020 | O13: 0.2305936073
L15: Standard Deviation | N15: =STDEV(N3:N13) -> 43.14647357 | O15: =STDEV(O3:O13) -> 0.004925396527
G16: % = (DSCR-1)/DSCR | L16: Average | N16: =AVERAGE(N2:N13) -> 2009.727273 | O16: =AVERAGE(O2:O13) -> 0.2294209215
G17: DSCR x % = DSCR - 1 | L17: Std Dev/Avearage | N17: =N15/N16 -> 0.02146882025 | O17: =O15/O16 -> 0.02146882025
G18: DSCR x % - DSCR = -1
G19: DSCR - DSCR * % = 1 | L19: P90 | O19: =NORMINV(0.1,O16,O17) -> 0.2019075213
G20: DSCR = 1/(1-%) | L20: P90/P50 | O20: =O19/O16 -> 0.8800745807
L21: % Red | O21: =1-O20 -> 0.1199254193
L22: DSCR - P90 | O22: =1/(1-O21) -> 1.136267337

Sheet PV Syst
A1: GlobHor | B1: DiffHor | C1: T | D1: Amb | E1: GlobInc | F1: GlobEff | G1: EArray | H1: E_Grid | I1: PR
B2: kWh/m² | C2: kWh/m² | D2: °C | E2: kWh/m² | F2: kWh/m² | G2: MWh | H2: MWh
A3: Enero | B3: 127.6 | C3: 55.45 | D3: 21.68 | E3: 165 | F3: 161.7 | G3: 13208 | H3: 12977 | I3: 0.834
A4: Febrero | B4: 137.2 | C4: 55.9 | D4: 23.04 | E4: 164.2 | F4: 160.8 | G4: 12938 | H4: 12710 | I4: 0.821
A5: Marzo | B5: 181.1 | C5: 66.23 | D5: 24.87 | E5: 196.3 | F5: 191.9 | G5: 15180 | H5: 14910 | I5: 0.805
A6: Abril | B6: 195.7 | C6: 71.06 | D6: 25.96 | E6: 187.6 | F6: 182.2 | G6: 14525 | H6: 14271 | I6: 0.806
A7: Mayo | B7: 200.8 | C7: 81.18 | D7: 28.22 | E7: 175.2 | F7: 169.5 | G7: 13567 | H7: 13334 | I7: 0.807
A8: Junio | B8: 181.5 | C8: 89.59 | D8: 28.28 | E8: 153.9 | F8: 148.6 | G8: 12053 | H8: 11847 | I8: 0.816
A9: Julio | B9: 206 | C9: 89.12 | D9: 28.92 | E9: 176.3 | F9: 170.1 | G9: 13652 | H9: 13420 | I9: 0.807
A10: Agosto | B10: 191.9 | C10: 80.66 | D10: 28.49 | E10: 177.7 | F10: 172.2 | G10: 13684 | H10: 13450 | I10: 0.803
A11: Septiembre | B11: 164.1 | C11: 69.18 | D11: 26.9 | E11: 168.2 | F11: 163.8 | G11: 12993 | H11: 12767 | I11: 0.805
A12: Octubre | B12: 141.4 | C12: 70.22 | D12: 26.19 | E12: 161.1 | F12: 157.1 | G12: 12618 | H12: 12399 | I12: 0.816
A13: Noviembre | B13: 123.7 | C13: 46.79 | D13: 23.65 | E13: 158.6 | F13: 155.5 | G13: 12446 | H13: 12224 | I13: 0.817
A14: Diciembre | B14: 115.4 | C14: 47.07 | D14: 22.55 | E14: 155.2 | F14: 152.1 | G14: 12398 | H14: 12180 | I14: 0.832
A16: Año | B16: =SUM(B3:B14) -> 1966.4 | C16: =SUM(C3:C14) -> 822.45 | D16: 308.75 | E16: 2039.3 | F16: 1985.5 | G16: 159262 | H16: 156489 | I16: =I21 -> 0.8135860782
A18: Capacity | G18: 94319 | H18: 94319
A19: Yield (kWh/kWp) | G19: =G16/G18*1000 -> 1688.546316 | H19: =H16/H18*1000 -> 1659.146089
A21: Hours | B21: =B16/8760 -> 0.2244748858 | C21: =C16/8760 -> 0.0938869863 | D21: =D16/8760 -> 0.03524543379 | E21: =E16/8760 -> 0.2327968037 | F21: =F16/8760 -> 0.2266552511 | G21: =G19/8760 -> 0.1927564288 | H21: =H19/8760 -> 0.1894002385 | I21: =H21/E21 -> 0.8135860782

Sheet Helioscope
C1: kWh/m2 | D1: Raw CF | E1: PR | F1: CF
A2: With Tilt | C2: 1832.3 | D2: =C2/8760 -> 0.2091666667 | E2: =M2 -> 0.782 | F2: =D2*M2 -> 0.1635683333 | L2: PR | M2: 0.782 | O2: 8760 | Q2: =Q11*Q21 -> 0.8232124917
A3: Raw | C3: 1743.7 | D3: =C3/8760 -> 0.1990525114 | L3: kWp | M3: 2640
L4: kWh/kWp | M4: 1433.7
L5: CF | M5: =M4/O2 -> 0.1636643836
L7: 1743.7 | M7: =L7/$O$2 -> 0.1990525114
L8: 1832.3 | M8: =L8/$O$2 -> 0.2091666667
L9: 1790.9 | M9: 0.2044406393
L10: 1737.2 | M10: 0.1983105023
L11: 1702.5 | M11: 0.1943493151 | Q11: =L11/L7 -> 0.9763720824
L13: kWh | M13: kWp | N13: kWh/kWp | O13: CF
L14: 4489239 | M14: =$M$3 -> 2640 | N14: =L14/M14 -> 1700.469318 | O14: =N14/$O$2 -> 0.1941175021
L15: 4356246 | M15: =$M$3 -> 2640 | N15: =L15/M15 -> 1650.093182 | O15: =N15/$O$2 -> 0.1883668016
L16: 3999443 | M16: 2640 | N16: 1514.94053 | O16: 0.1729384167
L17: 3907199 | M17: 2640 | N17: 1479.999621 | O17: 0.1689497284
L18: 3884223 | M18: 2640 | N18: 1471.296591 | O18: 0.1679562318
L19: 3881727 | M19: 2640 | N19: 1470.351136 | O19: 0.1678483032
L20: 3804050 | M20: 2640 | N20: 1440.92803 | O20: 0.1644895012
L21: 3785030 | M21: 2640 | N21: 1433.723485 | O21: 0.1636670645 | Q21: =L21/L14 -> 0.8431339922
M23: PR | O23: =O21/M8 -> 0.7824720214 | P23: =O23*M8 -> 0.1636670645

Sheet EU Raw Data
A1: Latitude (decimal degrees): 21.268
A2: Longitude (decimal degrees): -87.482
A3: Radiation database: PVGIS-NSRDB
A4: Nominal power of the PV system (crystalline silicon) (kWp): 1
A5: System losses(%): 14
A6: Fixed slope of modules (deg.) (optimum): 22
A7: Orientation (azimuth) of modules (optimum): -17
A9: Fixed angle
A10: Month Ed Em Hd Hm SDm
A11: 1 3.69 114 4.85 150 5.80
A12: 2 4.34 122 5.74 161 10.8
A13: 3 4.67 145 6.20 192 7.35
A14: 4 4.75 142 6.38 192 10.1
A15: 5 4.44 137 6.00 186 8.19
A16: 6 3.90 117 5.27 158 4.84
A17: 7 4.09 127 5.56 172 5.91
A18: 8 4.11 128 5.59 173 7.98
A19: 9 3.84 115 5.20 156 13.6
A20: 10 4.00 124 5.34 165 9.01
A21: 11 3.79 114 4.99 150 7.60
A22: 12 3.70 115 4.86 151 9.20
A23: Year 4.11 125 5.50 167 2.36
A24: AOI loss (%) Spectral effects (%) Temperature and low irradiance loss (%) Combined losses (%)
A25: Fixed system: 2.9 ?(0) 10.4 25.2
A27: Ed: Average daily energy production from the given system (kWh)
A28: Em: Average monthly energy production from the given system (kWh)
A29: Hd: Average daily sum of global irradiation per square meter received by the modules of the given system (kWh/m2)
A30: Hm: Average monthly sum of global irradiation per square meter received by the modules of the given system (kWh/m2)
A31: SDm: Standard deviation of the monthly energy production due to year-to-year variation (kWh)
A34: PVGIS (c) European Communities | B34: 2001-2016

Sheet Raw Tracking
A1: Monthly energy output from tracking PV system:
A2: January
A3: February
A4: March
A5: April
A6: May
A7: June
A8: July
A9: August
A10: September
A11: October
A12: November
A13: December
A14: Vertical Axis
A15: Month Em Hm SDm
A16: 154
A17: 164
A18: 193
A19: 191
A20: 190
A21: 154
A22: 168
A23: 168
A24: 150
A25: 158
A26: 151
A27: 153
A28: 202
A29: 215
A30: 254
A31: 253
A32: 254
A33: 205
A34: 224
A35: 225
A36: 200
A37: 210
A38: 198
A39: 201
A40: 9.97
A41: 18.1
A42: 8.77
A43: 10.9
A44: 17
A45: 11.6
A46: 11.2
A47: 9.48
A48: 20.4
A49: 10.5
A50: 13.2
A51: 14.7
A52: Inclined Axis
A53: Em Hm SDm
A54: 152
A55: 166
A56: 200
A57: 199
A58: 195
A59: 154
A60: 170
A61: 174
A62: 156
A63: 161
A64: 148
A65: 148
A66: 198
A67: 217
A68: 264
A69: 265
A70: 260
A71: 205
A72: 227
A73: 233
A74: 209
A75: 214
A76: 194
A77: 193
A78: 9.54
A79: 18
A80: 9.04
A81: 11.5
A82: 17.5
A83: 11.6
A84: 11.3
A85: 9.98
A86: 21.3
A87: 10.7
A88: 12.8
A89: 13.9
A90: Two Axis
A91: Em Hm SDm
A92: 160
A93: 169
A94: 201
A95: 201
A96: 203
A97: 164
A98: 179
A99: 178
A100: 156
A101: 163
A102: 154
A103: 158
A104: 209
A105: 222
A106: 265
A107: 268
A108: 272
A109: 219
A110: 240
A111: 239
A112: 210
A113: 216
A114: 203
A115: 207
A116: 10.5
A117: 18.9
A118: 9.09
A119: 11.6
A120: 18.4
A121: 12.6
A122: 12
A123: 10.1
A124: 21.3
A125: 11
A126: 13.6
A127: 15.5

Sheet Raw Monthly
A1: Month
A2: January
A3: February
A4: March
A5: April
A6: May
A7: June
A8: July
A9: August
A10: September
A11: October
A12: November
A13: December
A14: 2005
A15: 177
A16: 164
A17: 200
A18: 186
A19: 179
A20: 153
A21: 177
A22: 170
A23: 157
A24: 153
A25: 153
A26: 161
A27: 2006
A28: 160
A29: 160
A30: 194
A31: 202
A32: 173
A33: 160
A34: 171
A35: 162
A36: 169
A37: 161
A38: 137
A39: 128
A40: 2007
A41: 154
A42: 148
A43: 178
A44: 190
A45: 188
A46: 160
A47: 181
A48: 163
A49: 167
A50: 163
A51: 153
A52: 152
A53: 2008
A54: 148
A55: 161
A56: 188
A57: 199
A58: 191
A59: 150
A60: 176
A61: 191
A62: 152
A63: 151
A64: 159
A65: 149
A66: 2009
A67: 158
A68: 177
A69: 189
A70: 203
A71: 199
A72: 169
A73: 185
A74: 173
A75: 162
A76: 170
A77: 146
A78: 147
A79: 2010
A80: 135
A81: 130
A82: 198
A83: 163
A84: 190
A85: 166
A86: 165
A87: 179
A88: 171
A89: 182
A90: 158
A91: 155
A92: 2011
A93: 151
A94: 155
A95: 201
A96: 203
A97: 209
A98: 148
A99: 172
A100: 166
A101: 168
A102: 143
A103: 157
A104: 162
A105: 2012
A106: 147
A107: 157
A108: 190
A109: 181
A110: 168
A111: 158
A112: 174
A113: 188
A114: 108
A115: 171
A116: 148
A117: 164
A118: 2013
A119: 144
A120: 161
A121: 176
A122: 190
A123: 194
A124: 157
A125: 167
A126: 165
A127: 145
A128: 161
A129: 138
A130: 143
A131: 2014
A132: 139
A133: 177
A134: 209
A135: 206
A136: 180
A137: 172
A138: 173
A139: 181
A140: 153
A141: 163
A142: 156
A143: 159
A144: 2015
A145: 152
A146: 163
A147: 189
A148: 191
A149: 202
A150: 159
A151: 183
A152: 176
A153: 161
A154: 159
A155: 144
A156: 141
